[Event "Titled Tuesday Blitz January 25 2022"]
[White "Seo, Jung Min"]
[Black "Suarez Uriel, Adrian"]
[WhiteFideId "1734687"]
[BlackFideId "22230874"]
[WhiteElo "2401"]
[BlackElo "2316"]
[Result "1/2-1/2"]
[Round "03"]
[TimeControl "180+1"]
[Date "2022.01.26"]
[WhiteClock "0:00:19"]
[BlackClock "0:00:27"]

1. d4 {[%clk 0:03:00]}  Nf6 {[%clk 0:02:59]} 2. c4 {[%clk 0:03:00]}  g6 {[%clk 0:03:00]} 3. Nc3 {[%clk 0:03:00]}  d5 {[%clk 0:03:01]} 4. cxd5 {[%clk 0:02:58]}  Nxd5 {[%clk 0:03:01]} 5. Qa4+ {[%clk 0:02:56]}  Bd7 {[%clk 0:02:49]} 6. Qb3 {[%clk 0:02:54]}  Nxc3 {[%clk 0:02:45]} 7. bxc3 {[%clk 0:02:54]}  c5 {[%clk 0:02:43]} 8. Nf3 {[%clk 0:02:48]}  Bg7 {[%clk 0:02:42]} 9. e3 {[%clk 0:02:44]}  Nc6 {[%clk 0:02:40]} 10. Be2 {[%clk 0:02:37]}  O-O {[%clk 0:02:40]} 11. O-O {[%clk 0:02:37]}  b5 {[%clk 0:02:24]} 12. Ba3 {[%clk 0:02:06]}  b4 {[%clk 0:02:22]} 13. cxb4 {[%clk 0:02:06]}  cxd4 {[%clk 0:02:13]} 14. exd4 {[%clk 0:01:54]}  Be6 {[%clk 0:02:06]} 15. Bc4 {[%clk 0:01:47]}  Bxc4 {[%clk 0:02:03]} 16. Qxc4 {[%clk 0:01:47]}  Nxd4 {[%clk 0:02:04]} 17. Nxd4 {[%clk 0:01:47]}  Qxd4 {[%clk 0:02:04]} 18. Qxd4 {[%clk 0:01:47]}  Bxd4 {[%clk 0:02:05]} 19. Rad1 {[%clk 0:01:46]}  e5 {[%clk 0:02:05]} 20. Rb1 {[%clk 0:01:34]}  Rfc8 {[%clk 0:02:04]} 21. Rfc1 {[%clk 0:01:33]}  a6 {[%clk 0:02:03]} 22. Kf1 {[%clk 0:01:32]}  f5 {[%clk 0:02:02]} 23. f3 {[%clk 0:01:32]}  Kf7 {[%clk 0:02:02]} 24. Ke2 {[%clk 0:01:32]}  Ke6 {[%clk 0:02:02]} 25. h3 {[%clk 0:01:18]}  h5 {[%clk 0:02:01]} 26. Kd3 {[%clk 0:01:16]}  Kd5 {[%clk 0:01:56]} 27. Ke2 {[%clk 0:01:16]}  g5 {[%clk 0:01:49]} 28. Kd3 {[%clk 0:01:15]}  e4+ {[%clk 0:01:38]} 29. fxe4+ {[%clk 0:01:15]}  fxe4+ {[%clk 0:01:39]} 30. Ke2 {[%clk 0:01:15]}  Rf8 {[%clk 0:01:40]} 31. Rf1 {[%clk 0:01:13]}  Rac8 {[%clk 0:01:40]} 32. Rbc1 {[%clk 0:00:57]}  Rxc1 {[%clk 0:01:38]} 33. Bxc1 {[%clk 0:00:56]}  Rxf1 {[%clk 0:01:38]} 34. Kxf1 {[%clk 0:00:56]}  g4 {[%clk 0:01:38]} 35. hxg4 {[%clk 0:00:56]}  hxg4 {[%clk 0:01:38]} 36. Ke2 {[%clk 0:00:50]}  Kc4 {[%clk 0:01:37]} 37. Bd2 {[%clk 0:00:50]}  Bc3 {[%clk 0:01:13]} 38. Bc1 {[%clk 0:00:49]}  Bxb4 {[%clk 0:01:09]} 39. Ke3 {[%clk 0:00:50]}  Kd5 {[%clk 0:01:10]} 40. Kf4 {[%clk 0:00:49]}  Kd4 {[%clk 0:01:07]} 41. Kxg4 {[%clk 0:00:49]}  Kd3 {[%clk 0:01:08]} 42. Kg3 {[%clk 0:00:40]}  Bd2 {[%clk 0:01:04]} 43. Ba3 {[%clk 0:00:19]}  e3 {[%clk 0:01:03]} 44. Bc5 {[%clk 0:00:20]}  e2 {[%clk 0:01:02]} 45. Bf2 {[%clk 0:00:20]}  e1=Q {[%clk 0:00:55]} 46. Bxe1 {[%clk 0:00:20]}  Bxe1+ {[%clk 0:00:56]} 47. Kf3 {[%clk 0:00:20]}  Kc2 {[%clk 0:00:56]} 48. g4 {[%clk 0:00:20]}  Kb2 {[%clk 0:00:57]} 49. Ke2 {[%clk 0:00:20]}  Bc3 {[%clk 0:00:56]} 50. Kd3 {[%clk 0:00:20]}  Bg7 {[%clk 0:00:54]} 51. Kc4 {[%clk 0:00:20]}  Kxa2 {[%clk 0:00:44]} 52. Kb4 {[%clk 0:00:19]}  Kb2 {[%clk 0:00:23]} 53. Ka5 {[%clk 0:00:19]}  Kc3 {[%clk 0:00:24]} 54. Kxa6 {[%clk 0:00:19]}  Kd4 {[%clk 0:00:25]} 55. g5 {[%clk 0:00:19]}  Ke4 {[%clk 0:00:26]} 56. Kb5 {[%clk 0:00:19]}  Kf5 {[%clk 0:00:26]} 57. Kc4 {[%clk 0:00:19]}  Kxg5 {[%clk 0:00:27]} 1/2-1/2


[Site "https://www.chess.com"]

[Event "Titled Tuesday Blitz January 25 2022"]
[White "Shevchenko, Kirill"]
[Black "Mischuk, Dmitry"]
[WhiteFideId "14129574"]
[BlackFideId "14118734"]
[WhiteElo "2624"]
[BlackElo "2256"]
[Result "1-0"]
[Round "03"]
[TimeControl "180+1"]
[Date "2022.01.26"]
[WhiteClock "0:00:08"]
[BlackClock "0:00:03"]

1. d4 {[%clk 0:03:00]}  Nf6 {[%clk 0:02:57]} 2. Bg5 {[%clk 0:03:01]}  Ne4 {[%clk 0:02:55]} 3. Bf4 {[%clk 0:03:01]}  c5 {[%clk 0:02:55]} 4. f3 {[%clk 0:03:01]}  Nf6 {[%clk 0:02:55]} 5. d5 {[%clk 0:03:01]}  d6 {[%clk 0:02:54]} 6. e4 {[%clk 0:02:57]}  g6 {[%clk 0:02:54]} 7. c4 {[%clk 0:02:54]}  Bg7 {[%clk 0:02:54]} 8. Nc3 {[%clk 0:02:55]}  Na6 {[%clk 0:02:44]} 9. Bd3 {[%clk 0:02:49]}  Nc7 {[%clk 0:02:43]} 10. Nge2 {[%clk 0:02:48]}  Rb8 {[%clk 0:02:43]} 11. a4 {[%clk 0:02:48]}  Na6 {[%clk 0:02:43]} 12. Rc1 {[%clk 0:02:41]}  Nb4 {[%clk 0:02:41]} 13. Bb1 {[%clk 0:02:41]}  a6 {[%clk 0:02:34]} 14. O-O {[%clk 0:02:39]}  O-O {[%clk 0:02:33]} 15. Qd2 {[%clk 0:02:37]}  Re8 {[%clk 0:02:30]} 16. Bh6 {[%clk 0:02:33]}  Bh8 {[%clk 0:02:30]} 17. Nf4 {[%clk 0:02:07]}  Nd7 {[%clk 0:02:13]} 18. b3 {[%clk 0:01:49]}  Ne5 {[%clk 0:02:06]} 19. h3 {[%clk 0:01:38]}  f6 {[%clk 0:01:32]} 20. Ne6 {[%clk 0:01:30]}  Qa5 {[%clk 0:01:29]} 21. Be3 {[%clk 0:01:09]}  Bxe6 {[%clk 0:00:41]} 22. dxe6 {[%clk 0:01:09]}  Nbc6 {[%clk 0:00:41]} 23. f4 {[%clk 0:01:07]}  Nd4 {[%clk 0:00:37]} 24. fxe5 {[%clk 0:01:06]}  Nxb3 {[%clk 0:00:36]} 25. Qf2 {[%clk 0:00:45]}  Nxc1 {[%clk 0:00:32]} 26. Nd5 {[%clk 0:00:43]}  Qxa4 {[%clk 0:00:24]} 27. exf6 {[%clk 0:00:41]}  exf6 {[%clk 0:00:20]} 28. Rxc1 {[%clk 0:00:35]}  Rxe6 {[%clk 0:00:16]} 29. h4 {[%clk 0:00:30]}  Qd7 {[%clk 0:00:07]} 30. h5 {[%clk 0:00:30]}  b5 {[%clk 0:00:08]} 31. hxg6 {[%clk 0:00:28]}  hxg6 {[%clk 0:00:05]} 32. Nf4 {[%clk 0:00:28]}  g5 {[%clk 0:00:03]} 33. Nxe6 {[%clk 0:00:28]}  Qxe6 {[%clk 0:00:04]} 34. Ba2 {[%clk 0:00:26]}  b4 {[%clk 0:00:04]} 35. Bb3 {[%clk 0:00:22]}  Qxe4 {[%clk 0:00:03]} 36. Re1 {[%clk 0:00:22]}  Re8 {[%clk 0:00:03]} 37. Bd2 {[%clk 0:00:21]}  Qg6 {[%clk 0:00:03]} 38. Rxe8+ {[%clk 0:00:19]}  Qxe8 {[%clk 0:00:04]} 39. Qf5 {[%clk 0:00:19]}  Bg7 {[%clk 0:00:03]} 40. Bc2 {[%clk 0:00:19]}  Qe5 {[%clk 0:00:04]} 41. Qxe5 {[%clk 0:00:15]}  dxe5 {[%clk 0:00:01]} 42. g4 {[%clk 0:00:13]}  f5 {[%clk 0:00:01]} 43. Bxf5 {[%clk 0:00:12]}  e4 {[%clk 0:00:01]} 44. Bxe4 {[%clk 0:00:12]}  b3 {[%clk 0:00:01]} 45. Ba5 {[%clk 0:00:08]}  Bd4+ {[%clk 0:00:01]} 46. Kg2 {[%clk 0:00:08]}  Kg7 {[%clk 0:00:02]} 47. Kf3 {[%clk 0:00:09]}  Kf6 {[%clk 0:00:03]} 48. Bb1 {[%clk 0:00:08]}  Ke5 {[%clk 0:00:03]} 49. Bc7+ {[%clk 0:00:09]}  Kf6 {[%clk 0:00:03]} 50. Ke4 {[%clk 0:00:10]}  Bc3 {[%clk 0:00:03]} 51. Kd3 {[%clk 0:00:10]}  Bb4 {[%clk 0:00:03]} 52. Bd8+ {[%clk 0:00:10]}  Kf7 {[%clk 0:00:01]} 53. Bxg5 {[%clk 0:00:05]}  a5 {[%clk 0:00:02]} 54. Bc2 {[%clk 0:00:02]}  bxc2 {[%clk 0:00:01]} 55. Kxc2 {[%clk 0:00:03]}  a4 {[%clk 0:00:02]} 56. Bf4 {[%clk 0:00:03]}  a3 {[%clk 0:00:02]} 57. Be5 {[%clk 0:00:04]}  Kg6 {[%clk 0:00:02]} 58. Bf4 {[%clk 0:00:04]}  Kf6 {[%clk 0:00:03]} 59. Kb3 {[%clk 0:00:05]}  Kg6 {[%clk 0:00:03]} 60. Bc1 {[%clk 0:00:05]}  Kf6 {[%clk 0:00:03]} 61. Bxa3 {[%clk 0:00:05]}  Ba5 {[%clk 0:00:03]} 62. Bc1 {[%clk 0:00:04]}  Kg6 {[%clk 0:00:03]} 63. Ka4 {[%clk 0:00:05]}  Bb4 {[%clk 0:00:03]} 64. Kb5 {[%clk 0:00:06]}  Kf6 {[%clk 0:00:02]} 65. Kc6 {[%clk 0:00:06]}  Kg6 {[%clk 0:00:03]} 66. Kd5 {[%clk 0:00:07]}  Kf6 {[%clk 0:00:02]} 67. Ke4 {[%clk 0:00:07]}  Kg6 {[%clk 0:00:02]} 68. Bf4 {[%clk 0:00:07]}  Bc3 {[%clk 0:00:02]} 69. Be5 {[%clk 0:00:07]}  Bb4 {[%clk 0:00:02]} 70. Bc7 {[%clk 0:00:07]}  Kg5 {[%clk 0:00:02]} 71. Kf3 {[%clk 0:00:07]}  Bc3 {[%clk 0:00:02]} 72. Bd8+ {[%clk 0:00:07]}  Kg6 {[%clk 0:00:02]} 73. Be7 {[%clk 0:00:07]}  Bd4 {[%clk 0:00:02]} 74. Ke4 {[%clk 0:00:07]}  Bg1 {[%clk 0:00:03]} 75. Kd5 {[%clk 0:00:07]}  Bf2 {[%clk 0:00:03]} 76. Bxc5 {[%clk 0:00:07]}  Bh4 {[%clk 0:00:03]} 77. Be3 {[%clk 0:00:07]}  Kf7 {[%clk 0:00:03]} 78. c5 {[%clk 0:00:07]}  Ke7 {[%clk 0:00:04]} 79. c6 {[%clk 0:00:08]}  Kd8 {[%clk 0:00:04]} 80. g5 {[%clk 0:00:07]}  Ke8 {[%clk 0:00:04]} 81. g6 {[%clk 0:00:08]}  Bg3 {[%clk 0:00:04]} 82. Bd4 {[%clk 0:00:07]}  Kf8 {[%clk 0:00:03]} 83. Be5 {[%clk 0:00:08]} 1-0


[Site "https://www.chess.com"]

[Event "Titled Tuesday Blitz January 25 2022"]
[White "Srihari L R"]
[Black "Estrada Nieto, Julian"]
[WhiteFideId "46617116"]
[BlackFideId "5101018"]
[WhiteElo "2121"]
[BlackElo "2246"]
[Result "1-0"]
[Round "03"]
[TimeControl "180+1"]
[Date "2022.01.26"]
[WhiteClock "0:00:07"]
[BlackClock "0:00:16"]

1. c4 {[%clk 0:03:00]}  e5 {[%clk 0:02:59]} 2. Nc3 {[%clk 0:03:00]}  Nf6 {[%clk 0:02:59]} 3. Nf3 {[%clk 0:02:59]}  Nc6 {[%clk 0:02:59]} 4. e3 {[%clk 0:02:59]}  Bb4 {[%clk 0:03:00]} 5. Qc2 {[%clk 0:02:58]}  Bxc3 {[%clk 0:03:00]} 6. Qxc3 {[%clk 0:02:57]}  Qe7 {[%clk 0:03:00]} 7. d4 {[%clk 0:02:51]}  Ne4 {[%clk 0:02:57]} 8. Qd3 {[%clk 0:02:49]}  exd4 {[%clk 0:02:57]} 9. Nxd4 {[%clk 0:02:49]}  O-O {[%clk 0:02:31]} 10. Be2 {[%clk 0:02:47]}  Nxd4 {[%clk 0:02:12]} 11. Qxd4 {[%clk 0:02:41]}  b6 {[%clk 0:01:52]} 12. O-O {[%clk 0:02:38]}  Bb7 {[%clk 0:01:52]} 13. b3 {[%clk 0:02:38]}  c5 {[%clk 0:01:46]} 14. Qd3 {[%clk 0:02:28]}  Rad8 {[%clk 0:01:43]} 15. Bb2 {[%clk 0:02:25]}  d5 {[%clk 0:01:41]} 16. Qc2 {[%clk 0:02:22]}  dxc4 {[%clk 0:01:36]} 17. Bxc4 {[%clk 0:02:19]}  Rd2 {[%clk 0:01:27]} 18. Qc1 {[%clk 0:02:02]}  Qg5 {[%clk 0:01:20]} 19. g3 {[%clk 0:01:33]}  Qf5 {[%clk 0:00:59]} 20. Qd1 {[%clk 0:00:20]}  Ng5 {[%clk 0:00:35]} 21. e4 {[%clk 0:00:06]}  Qxe4 {[%clk 0:00:19]} 22. f3 {[%clk 0:00:03]}  Nxf3+ {[%clk 0:00:16]} 23. Qxf3 {[%clk 0:00:03]}  Qxf3 {[%clk 0:00:13]} 24. Rxf3 {[%clk 0:00:04]}  Bxf3 {[%clk 0:00:14]} 25. Bc3 {[%clk 0:00:04]}  Rb2 {[%clk 0:00:14]} 26. Bxb2 {[%clk 0:00:04]}  Re8 {[%clk 0:00:12]} 27. Rf1 {[%clk 0:00:04]}  Be2 {[%clk 0:00:11]} 28. Re1 {[%clk 0:00:04]}  Kf8 {[%clk 0:00:10]} 29. Rxe2 {[%clk 0:00:04]}  Rxe2 {[%clk 0:00:09]} 30. Bxe2 {[%clk 0:00:05]}  f6 {[%clk 0:00:10]} 31. Kf2 {[%clk 0:00:06]}  Ke7 {[%clk 0:00:11]} 32. Ke3 {[%clk 0:00:06]}  Kd6 {[%clk 0:00:11]} 33. Bc4 {[%clk 0:00:07]}  Kc6 {[%clk 0:00:11]} 34. a4 {[%clk 0:00:07]}  b5 {[%clk 0:00:12]} 35. Bxb5+ {[%clk 0:00:07]}  Kb6 {[%clk 0:00:13]} 36. Bc4 {[%clk 0:00:07]}  a5 {[%clk 0:00:13]} 37. Ke4 {[%clk 0:00:07]}  g6 {[%clk 0:00:13]} 38. Kd5 {[%clk 0:00:07]}  f5 {[%clk 0:00:14]} 39. Bf6 {[%clk 0:00:07]}  g5 {[%clk 0:00:15]} 40. Bxg5 {[%clk 0:00:07]}  f4 {[%clk 0:00:16]} 41. Bxf4 {[%clk 0:00:08]}  h5 {[%clk 0:00:16]} 42. h3 {[%clk 0:00:07]} 1-0


[Site "https://www.chess.com"]

[Event "Titled Tuesday Blitz January 25 2022"]
[White "Steinberg, Nitzan"]
[Black "Nilsen, Tobias Lang"]
[WhiteFideId "2801795"]
[BlackFideId "1521624"]
[WhiteElo "2440"]
[BlackElo "2013"]
[Result "1-0"]
[Round "03"]
[TimeControl "180+1"]
[Date "2022.01.26"]
[WhiteClock "0:01:03"]
[BlackClock "0:00:17"]

1. c4 {[%clk 0:02:59]}  c5 {[%clk 0:02:59]} 2. Nf3 {[%clk 0:03:00]}  g6 {[%clk 0:02:59]} 3. g3 {[%clk 0:03:00]}  Bg7 {[%clk 0:03:00]} 4. Bg2 {[%clk 0:03:01]}  Nc6 {[%clk 0:03:00]} 5. O-O {[%clk 0:03:02]}  d6 {[%clk 0:02:59]} 6. e3 {[%clk 0:03:01]}  e6 {[%clk 0:02:58]} 7. d4 {[%clk 0:03:01]}  Nge7 {[%clk 0:02:59]} 8. Nc3 {[%clk 0:03:01]}  O-O {[%clk 0:02:58]} 9. Re1 {[%clk 0:02:53]}  cxd4 {[%clk 0:02:50]} 10. exd4 {[%clk 0:02:53]}  d5 {[%clk 0:02:50]} 11. cxd5 {[%clk 0:02:52]}  Nxd5 {[%clk 0:02:51]} 12. Nxd5 {[%clk 0:02:51]}  exd5 {[%clk 0:02:52]} 13. Ne5 {[%clk 0:02:42]}  Nxe5 {[%clk 0:02:10]} 14. dxe5 {[%clk 0:02:42]}  Be6 {[%clk 0:02:11]} 15. Bf4 {[%clk 0:02:28]}  Qb6 {[%clk 0:02:07]} 16. Qd2 {[%clk 0:02:28]}  Rfd8 {[%clk 0:02:02]} 17. h4 {[%clk 0:02:27]}  h5 {[%clk 0:01:59]} 18. Rad1 {[%clk 0:02:10]}  Rac8 {[%clk 0:01:55]} 19. Bg5 {[%clk 0:02:10]}  Rd7 {[%clk 0:01:55]} 20. Bf6 {[%clk 0:02:10]}  Bg4 {[%clk 0:01:52]} 21. Bxg7 {[%clk 0:02:06]}  Kxg7 {[%clk 0:01:52]} 22. Rc1 {[%clk 0:02:06]}  Rxc1 {[%clk 0:01:40]} 23. Rxc1 {[%clk 0:02:07]}  d4 {[%clk 0:01:40]} 24. Be4 {[%clk 0:02:00]}  f6 {[%clk 0:01:07]} 25. f3 {[%clk 0:01:45]}  d3+ {[%clk 0:00:27]} 26. Kg2 {[%clk 0:01:45]}  f5 {[%clk 0:00:28]} 27. Bxd3 {[%clk 0:01:36]}  Qd4 {[%clk 0:00:17]} 28. fxg4 {[%clk 0:01:36]}  Qxd3 {[%clk 0:00:16]} 29. Qxd3 {[%clk 0:01:36]}  Rxd3 {[%clk 0:00:17]} 30. Rc7+ {[%clk 0:01:36]}  Kg8 {[%clk 0:00:17]} 31. gxf5 {[%clk 0:01:37]}  gxf5 {[%clk 0:00:18]} 32. Rxb7 {[%clk 0:01:36]}  a5 {[%clk 0:00:18]} 33. Rb5 {[%clk 0:01:30]}  Kf7 {[%clk 0:00:16]} 34. Rxa5 {[%clk 0:01:20]}  Rd2+ {[%clk 0:00:16]} 35. Kf3 {[%clk 0:01:21]}  Rxb2 {[%clk 0:00:17]} 36. Kf4 {[%clk 0:01:21]}  Rf2+ {[%clk 0:00:17]} 37. Kg5 {[%clk 0:01:21]}  Rf3 {[%clk 0:00:17]} 38. Ra6 {[%clk 0:01:16]}  Rxg3+ {[%clk 0:00:16]} 39. Kxf5 {[%clk 0:01:16]}  Rg4 {[%clk 0:00:12]} 40. Ra7+ {[%clk 0:01:14]}  Ke8 {[%clk 0:00:12]} 41. Kf6 {[%clk 0:00:58]}  Rxh4 {[%clk 0:00:07]} 42. Ra8+ {[%clk 0:00:58]}  Kd7 {[%clk 0:00:06]} 43. e6+ {[%clk 0:00:59]}  Kd6 {[%clk 0:00:07]} 44. e7 {[%clk 0:00:53]}  Rf4+ {[%clk 0:00:07]} 45. Kg5 {[%clk 0:00:54]}  Rg4+ {[%clk 0:00:03]} 46. Kxh5 {[%clk 0:00:54]}  Re4 {[%clk 0:00:03]} 47. e8=Q {[%clk 0:00:54]}  Rxe8 {[%clk 0:00:04]} 48. Rxe8 {[%clk 0:00:54]}  Kc5 {[%clk 0:00:05]} 49. Re4 {[%clk 0:00:54]}  Kb5 {[%clk 0:00:06]} 50. Rg4 {[%clk 0:00:54]}  Ka5 {[%clk 0:00:07]} 51. Kh4 {[%clk 0:00:54]}  Kb5 {[%clk 0:00:07]} 52. Kg3 {[%clk 0:00:55]}  Ka5 {[%clk 0:00:08]} 53. Kf3 {[%clk 0:00:56]}  Kb5 {[%clk 0:00:08]} 54. Ke3 {[%clk 0:00:56]}  Ka5 {[%clk 0:00:09]} 55. Kd3 {[%clk 0:00:57]}  Kb5 {[%clk 0:00:10]} 56. Kc3 {[%clk 0:00:58]}  Ka5 {[%clk 0:00:11]} 57. Kb3 {[%clk 0:00:58]}  Kb5 {[%clk 0:00:12]} 58. Rg5+ {[%clk 0:00:58]}  Kc6 {[%clk 0:00:13]} 59. a4 {[%clk 0:00:59]}  Kb6 {[%clk 0:00:14]} 60. Kb4 {[%clk 0:01:00]}  Kc6 {[%clk 0:00:14]} 61. Rg6+ {[%clk 0:01:00]}  Kb7 {[%clk 0:00:15]} 62. a5 {[%clk 0:01:01]}  Kc7 {[%clk 0:00:16]} 63. a6 {[%clk 0:01:01]}  Kb8 {[%clk 0:00:16]} 64. Kb5 {[%clk 0:01:02]}  Ka7 {[%clk 0:00:16]} 65. Rg7+ {[%clk 0:01:02]}  Ka8 {[%clk 0:00:17]} 66. Kb6 {[%clk 0:01:02]}  Kb8 {[%clk 0:00:17]} 67. Rg8# {[%clk 0:01:03]} 1-0


[Site "https://www.chess.com"]

[Event "Titled Tuesday Blitz January 25 2022"]
[White "Szpar, Milosz"]
[Black "Sychev, Klementy"]
[WhiteFideId "1184989"]
[BlackFideId "4114060"]
[WhiteElo "2447"]
[BlackElo "2564"]
[Result "0-1"]
[Round "03"]
[TimeControl "180+1"]
[Date "2022.01.26"]
[WhiteClock "0:00:12"]
[BlackClock "0:00:13"]

1. e4 {[%clk 0:02:55]}  g6 {[%clk 0:03:00]} 2. d4 {[%clk 0:02:55]}  Bg7 {[%clk 0:03:01]} 3. Nf3 {[%clk 0:02:51]}  d6 {[%clk 0:02:58]} 4. Bc4 {[%clk 0:02:50]}  Nf6 {[%clk 0:02:57]} 5. Qe2 {[%clk 0:02:48]}  Nc6 {[%clk 0:02:49]} 6. O-O {[%clk 0:02:44]}  Bg4 {[%clk 0:02:47]} 7. Rd1 {[%clk 0:02:34]}  e5 {[%clk 0:02:42]} 8. c3 {[%clk 0:02:23]}  O-O {[%clk 0:02:42]} 9. h3 {[%clk 0:02:21]}  Bxf3 {[%clk 0:02:42]} 10. Qxf3 {[%clk 0:02:22]}  Nd7 {[%clk 0:02:41]} 11. Be3 {[%clk 0:02:18]}  Kh8 {[%clk 0:02:41]} 12. Na3 {[%clk 0:02:00]}  f5 {[%clk 0:02:39]} 13. exf5 {[%clk 0:01:57]}  gxf5 {[%clk 0:02:38]} 14. dxe5 {[%clk 0:01:45]}  Ndxe5 {[%clk 0:02:34]} 15. Qg3 {[%clk 0:01:41]}  Qf6 {[%clk 0:02:23]} 16. Bg5 {[%clk 0:01:28]}  Qg6 {[%clk 0:02:19]} 17. Bf4 {[%clk 0:01:28]}  Qh5 {[%clk 0:02:15]} 18. Re1 {[%clk 0:01:25]}  Bf6 {[%clk 0:02:13]} 19. Be2 {[%clk 0:01:08]}  Qf7 {[%clk 0:02:10]} 20. Nc2 {[%clk 0:00:59]}  Rg8 {[%clk 0:02:09]} 21. Qh2 {[%clk 0:00:58]}  Rg7 {[%clk 0:01:34]} 22. Ne3 {[%clk 0:00:58]}  Rag8 {[%clk 0:01:27]} 23. Kh1 {[%clk 0:00:58]}  Bh4 {[%clk 0:01:07]} 24. Rf1 {[%clk 0:00:58]}  Qe6 {[%clk 0:00:46]} 25. b3 {[%clk 0:00:55]}  a6 {[%clk 0:00:45]} 26. Rae1 {[%clk 0:00:51]}  b5 {[%clk 0:00:44]} 27. Rd1 {[%clk 0:00:44]}  Ng6 {[%clk 0:00:39]} 28. Bf3 {[%clk 0:00:41]}  Nce7 {[%clk 0:00:33]} 29. Bh6 {[%clk 0:00:38]}  Rf7 {[%clk 0:00:30]} 30. Nd5 {[%clk 0:00:38]}  Ne5 {[%clk 0:00:25]} 31. Nxe7 {[%clk 0:00:26]}  Nxf3 {[%clk 0:00:24]} 32. gxf3 {[%clk 0:00:26]}  Rxe7 {[%clk 0:00:20]} 33. Be3 {[%clk 0:00:26]}  Bf6 {[%clk 0:00:17]} 34. Rg1 {[%clk 0:00:16]}  Reg7 {[%clk 0:00:17]} 35. Rxg7 {[%clk 0:00:14]}  Rxg7 {[%clk 0:00:18]} 36. Qf4 {[%clk 0:00:12]}  Be5 {[%clk 0:00:14]} 37. Qh4 {[%clk 0:00:12]}  Qg6 {[%clk 0:00:13]} 0-1


[Site "https://www.chess.com"]

[Event "Titled Tuesday Blitz January 25 2022"]
[White "Triapishko, Alexandr"]
[Black "Garriga Cazorla, Pere"]
[WhiteFideId "14122286"]
[BlackFideId "32011601"]
[WhiteElo "2479"]
[BlackElo "2458"]
[Result "1-0"]
[Round "03"]
[TimeControl "180+1"]
[Date "2022.01.26"]
[WhiteClock "0:00:08"]
[BlackClock "0:00:24"]

1. d4 {[%clk 0:02:39]}  Nf6 {[%clk 0:02:58]} 2. c4 {[%clk 0:02:36]}  e6 {[%clk 0:02:58]} 3. Bf4 {[%clk 0:02:32]}  c5 {[%clk 0:02:53]} 4. d5 {[%clk 0:02:02]}  exd5 {[%clk 0:02:52]} 5. cxd5 {[%clk 0:02:03]}  d6 {[%clk 0:02:53]} 6. Nc3 {[%clk 0:02:00]}  g6 {[%clk 0:02:53]} 7. e3 {[%clk 0:01:47]}  Bg7 {[%clk 0:02:51]} 8. Qa4+ {[%clk 0:01:47]}  Bd7 {[%clk 0:02:50]} 9. Qb3 {[%clk 0:01:47]}  Qc7 {[%clk 0:02:43]} 10. h3 {[%clk 0:01:36]}  a6 {[%clk 0:02:41]} 11. a4 {[%clk 0:01:35]}  O-O {[%clk 0:02:41]} 12. Nf3 {[%clk 0:01:35]}  Bf5 {[%clk 0:02:33]} 13. Nd2 {[%clk 0:01:21]}  h5 {[%clk 0:01:47]} 14. Nc4 {[%clk 0:01:15]}  Ne8 {[%clk 0:01:46]} 15. Qb6 {[%clk 0:00:50]}  Qd7 {[%clk 0:01:30]} 16. Nxd6 {[%clk 0:00:34]}  Nxd6 {[%clk 0:01:30]} 17. Qxd6 {[%clk 0:00:33]}  Qc8 {[%clk 0:01:29]} 18. Qc7 {[%clk 0:00:25]}  Qe8 {[%clk 0:01:27]} 19. Qxb7 {[%clk 0:00:15]}  Nd7 {[%clk 0:01:27]} 20. Bxa6 {[%clk 0:00:16]}  Ne5 {[%clk 0:01:14]} 21. O-O {[%clk 0:00:09]}  Qd8 {[%clk 0:00:47]} 22. Bb5 {[%clk 0:00:05]}  g5 {[%clk 0:00:44]} 23. Bh2 {[%clk 0:00:04]}  g4 {[%clk 0:00:43]} 24. d6 {[%clk 0:00:03]}  gxh3 {[%clk 0:00:41]} 25. Qd5 {[%clk 0:00:03]}  Be6 {[%clk 0:00:37]} 26. Qe4 {[%clk 0:00:03]}  hxg2 {[%clk 0:00:33]} 27. Qxg2 {[%clk 0:00:03]}  Ng6 {[%clk 0:00:34]} 28. Rfd1 {[%clk 0:00:03]}  Qf6 {[%clk 0:00:29]} 29. d7 {[%clk 0:00:03]}  Nh4 {[%clk 0:00:28]} 30. Qe4 {[%clk 0:00:03]}  Bg4 {[%clk 0:00:26]} 31. Bg3 {[%clk 0:00:02]}  Nf3+ {[%clk 0:00:26]} 32. Kg2 {[%clk 0:00:02]}  Ng5 {[%clk 0:00:27]} 33. Qf4 {[%clk 0:00:02]}  Qg6 {[%clk 0:00:27]} 34. Rd6 {[%clk 0:00:01]}  Qc2 {[%clk 0:00:20]} 35. Qxg5 {[%clk 0:00:02]}  Kh7 {[%clk 0:00:20]} 36. Qf4 {[%clk 0:00:01]}  Rad8 {[%clk 0:00:19]} 37. Bd3+ {[%clk 0:00:02]}  Qxd3 {[%clk 0:00:19]} 38. Rxd3 {[%clk 0:00:03]}  f5 {[%clk 0:00:19]} 39. Qg5 {[%clk 0:00:03]}  Rf7 {[%clk 0:00:20]} 40. Qf4 {[%clk 0:00:03]}  Bf6 {[%clk 0:00:21]} 41. Rd6 {[%clk 0:00:03]}  Be7 {[%clk 0:00:21]} 42. Rh6+ {[%clk 0:00:03]}  Kg7 {[%clk 0:00:21]} 43. Rxh5 {[%clk 0:00:02]}  Bxh5 {[%clk 0:00:21]} 44. Rh1 {[%clk 0:00:03]}  Kg6 {[%clk 0:00:20]} 45. Bh4 {[%clk 0:00:03]}  Rg8 {[%clk 0:00:17]} 46. Bxe7 {[%clk 0:00:03]}  Rxe7 {[%clk 0:00:18]} 47. Rxh5 {[%clk 0:00:02]}  Kxh5+ {[%clk 0:00:18]} 48. Kf3 {[%clk 0:00:03]}  Kg6 {[%clk 0:00:18]} 49. Qg3+ {[%clk 0:00:03]}  Kf7 {[%clk 0:00:18]} 50. Qxg8+ {[%clk 0:00:04]}  Kxg8 {[%clk 0:00:19]} 51. d8=Q+ {[%clk 0:00:04]}  Kf7 {[%clk 0:00:20]} 52. Qxe7+ {[%clk 0:00:05]}  Kxe7 {[%clk 0:00:21]} 53. Kf4 {[%clk 0:00:06]}  Kd6 {[%clk 0:00:21]} 54. Kxf5 {[%clk 0:00:06]}  Kc6 {[%clk 0:00:22]} 55. Ke4 {[%clk 0:00:07]}  Kb6 {[%clk 0:00:23]} 56. Kd3 {[%clk 0:00:08]}  Ka5 {[%clk 0:00:24]} 57. Kc4 {[%clk 0:00:08]} 1-0


[Site "https://www.chess.com"]

[Event "Titled Tuesday Blitz January 25 2022"]
[White "Urbina Perez, Juan Antonio"]
[Black "Atakishiyev, Elmar"]
[WhiteFideId "2217368"]
[BlackFideId "13410547"]
[WhiteElo "2192"]
[BlackElo "2087"]
[Result "0-1"]
[Round "03"]
[TimeControl "180+1"]
[Date "2022.01.26"]
[WhiteClock "0:00:26"]
[BlackClock "0:01:54"]

1. e4 {[%clk 0:03:00]}  e6 {[%clk 0:02:59]} 2. Qe2 {[%clk 0:02:54]}  c5 {[%clk 0:02:59]} 3. g3 {[%clk 0:02:51]}  Nc6 {[%clk 0:02:59]} 4. c3 {[%clk 0:02:50]}  g6 {[%clk 0:03:00]} 5. Bg2 {[%clk 0:02:51]}  Bg7 {[%clk 0:03:00]} 6. Nf3 {[%clk 0:02:51]}  Nge7 {[%clk 0:03:01]} 7. O-O {[%clk 0:02:51]}  O-O {[%clk 0:03:01]} 8. d3 {[%clk 0:02:51]}  d6 {[%clk 0:03:01]} 9. Rd1 {[%clk 0:02:47]}  e5 {[%clk 0:03:01]} 10. a4 {[%clk 0:02:44]}  h6 {[%clk 0:03:01]} 11. h3 {[%clk 0:02:42]}  f5 {[%clk 0:03:01]} 12. Kh2 {[%clk 0:02:39]}  f4 {[%clk 0:03:00]} 13. Rf1 {[%clk 0:02:37]}  g5 {[%clk 0:02:59]} 14. d4 {[%clk 0:02:27]}  Ng6 {[%clk 0:02:58]} 15. dxc5 {[%clk 0:02:21]}  dxc5 {[%clk 0:02:57]} 16. Qc4+ {[%clk 0:02:20]}  Kh7 {[%clk 0:02:52]} 17. Qxc5 {[%clk 0:02:20]}  g4 {[%clk 0:02:51]} 18. hxg4 {[%clk 0:02:18]}  Bxg4 {[%clk 0:02:52]} 19. Nbd2 {[%clk 0:02:01]}  h5 {[%clk 0:02:45]} 20. Nc4 {[%clk 0:01:44]}  h4 {[%clk 0:02:37]} 21. gxf4 {[%clk 0:01:20]}  Nxf4 {[%clk 0:02:33]} 22. Bxf4 {[%clk 0:01:15]}  Rxf4 {[%clk 0:02:27]} 23. Nfxe5 {[%clk 0:01:08]}  Nxe5 {[%clk 0:02:20]} 24. Nxe5 {[%clk 0:01:08]}  b6 {[%clk 0:02:16]} 25. Qd4 {[%clk 0:00:34]}  Qc7 {[%clk 0:02:03]} 26. Qd5 {[%clk 0:00:26]}  Rd8 {[%clk 0:01:54]} 0-1


[Site "https://www.chess.com"]